fUST/lending_fUST_20250221
["ID","MTS","AMOUNT","RATE_DAILY","PERIOD"]
[353885602,1740111054937,-1730.93,0.00014767,2]
[353885603,1740111054947,-1992.37,0.00014767,2]
[353885604,1740111054957,-1960.15,0.00014767,2]
[353885605,1740111054967,-6448.97,0.00014767,2]
[353885606,1740111054976,-500.0,0.00014767,2]
[353885607,1740111054986,-1143.37,0.00014767,2]
[353885608,1740111054995,-507.07882964,0.00014767,2]
[353885609,1740111055006,-500.0,0.00014767,2]
[353885610,1740111055015,-903.59,0.00014767,2]
[353885611,1740111055025,-1030.56,0.00014767,2]
[353885612,1740111055034,-2872.4,0.00014767,2]
[353885613,1740111055044,-508.37035668,0.00014767,2]
[353885614,1740111055054,-28856.58,0.00014767,2]
[353885615,1740111055064,-558.82,0.00014767,2]
[353885616,1740111055073,-500.0,0.00014767,2]
[353885617,1740111055083,-1834.57,0.00014767,2]
[353885618,1740111055093,-514.52457317,0.00014767,2]
[353885619,1740111055103,-1451.4,0.00014767,2]
[353885620,1740111055112,-1119.84,0.00014767,2]
[353885621,1740111055122,-500.0,0.00014767,2]
[353885622,1740111055131,-11981.88,0.00014767,2]
[353885623,1740111055141,-2597.87,0.00014767,2]
[353885624,1740111055151,-1107.5,0.00014767,2]
[353885625,1740111055161,-5183.19,0.00014767,2]
[353885626,1740111055172,-920.84,0.00014767,2]
[353885627,1740111055183,-915.53,0.00014767,2]
[353885628,1740111055193,-712.21,0.00014767,2]
[353885629,1740111055203,-2828.99,0.00014767,2]
[353885630,1740111055213,-500.0,0.00014767,2]
[353885631,1740111055222,-1569.7,0.00014767,2]
[353885632,1740111055232,-702.91,0.00014767,2]
[353885633,1740111055242,-3081.86,0.00014767,2]
[353885634,1740111055253,-1013.92,0.00014767,2]
[353885635,1740111055263,-500.0,0.00014767,2]
[353885636,1740111055272,-553.77,0.00014767,2]
[353885637,1740111055286,-500.0,0.00014767,2]
[353885638,1740111055296,-838.68,0.00014767,2]
[353885639,1740111055306,-2200.03,0.00014767,2]
[353885640,1740111055315,-1616.94,0.00014767,2]
[353885641,1740111055325,-1636.13,0.00014767,2]
[353885642,1740111055335,-518.65,0.00014767,2]
[353885643,1740111055344,-1864.66,0.00014767,2]
[353885644,1740111055353,-500.0,0.00014767,2]
[353885645,1740111055363,-584.08,0.00014767,2]
[353885646,1740111055376,-4589.01,0.00014767,2]
[353885647,1740111055385,-374.74986051,0.00014767,2]
[353885648,1740111055395,-500.0,0.00014767,2]
[353885649,1740111055404,-1463.98,0.00014767,2]
[353885650,1740111055414,-500.0,0.00014767,2]
[353885651,1740111055423,-500.0,0.00014767,2]
[353885652,1740111055433,-709.19,0.00014767,2]
[353885653,1740111055443,-3897.69,0.000148,2]
[353885654,1740111055453,-1000.0,0.000148,6]
[353885655,1740111055463,-1000.0,0.000148,7]
[353885656,1740111055473,-1000.0,0.000148,8]
[353885657,1740111055482,-1000.0,0.000148,9]
[353885658,1740111055492,-1004.9,0.000148,10]
[353885659,1740111055501,-198.0,0.000148,3]
[353885660,1740111055511,-198.0,0.000148,14]
[353885661,1740111055521,-606.11449744,0.00014802,2]
[353885662,1740111055530,-562.4722595,0.00014847,2]
[353885663,1740111055540,-500.0,0.00014849,2]
[353885664,1740111055550,-1391.52,0.00014849,2]
[353885665,1740111055560,-500.0,0.00014849,2]
[353885666,1740111055569,-500.0,0.00014849,2]
[353885667,1740111055579,-500.0,0.00014849,2]
[353885668,1740111055588,-667.85,0.00014849,2]
[353885669,1740111055598,-500.0,0.00014849,2]
[353885670,1740111055607,-819.93,0.00014849,2]
[353885671,1740111055616,-500.0,0.00014849,2]
[353885672,1740111055625,-500.0,0.00014849,2]
[353885673,1740111055634,-583.78,0.00014849,2]
[353885674,1740111055644,-500.0,0.00014849,2]
[353885675,1740111055654,-500.0,0.00014849,2]
[353885676,1740111055662,-500.0,0.00014849,2]
[353885677,1740111055671,-921.15,0.00014849,2]
[353885678,1740111055681,-500.0,0.00014849,2]
[353885679,1740111055691,-944.8,0.00014849,2]
[353885680,1740111055701,-696.93,0.00014849,2]
[353885681,1740111055711,-619.66,0.00014849,2]
[353885682,1740111055721,-500.0,0.00014849,2]
[353885683,1740111055730,-422.71901577,0.00014849,2]
[353885684,1740111055740,-14170.17,0.00014849,2]
[353885685,1740111055750,-1730.93,0.00014849,2]
[353885686,1740111055760,-1992.37,0.00014849,2]
[353885687,1740111055770,-151.0,0.00014849,2]
[353885688,1740111055779,-1960.15,0.00014849,2]
[353885689,1740111055789,-6448.97,0.00014849,2]
[353885690,1740111055801,-500.0,0.00014849,2]
[353885691,1740111055812,-1143.37,0.00014849,2]
[353885692,1740111055823,-500.0,0.00014849,2]
[353885693,1740111055835,-903.59,0.00014849,2]
[353885694,1740111055844,-1030.56,0.00014849,2]
[353885695,1740111055854,-2872.4,0.00014849,2]
[353885696,1740111055937,-28856.58,0.00014849,2]
[353885697,1740111055948,-558.82,0.00014849,2]
[353885698,1740111055958,-500.0,0.00014849,2]
[353885699,1740111055967,-1834.57,0.00014849,2]
[353885700,1740111055977,-1451.4,0.00014849,2]
[353885701,1740111055987,-1119.84,0.00014849,2]
[353885702,1740111055997,-500.0,0.00014849,2]
[353885703,1740111056008,-11981.88,0.00014849,2]
[353885704,1740111056018,-2597.87,0.00014849,2]
[353885705,1740111056027,-1107.5,0.00014849,2]
[353885706,1740111056037,-5183.19,0.00014849,2]
[353885707,1740111056047,-920.84,0.00014849,2]
[353885708,1740111056057,-915.53,0.00014849,2]
[353885709,1740111056066,-712.21,0.00014849,2]
[353885710,1740111056077,-2828.99,0.00014849,2]
[353885711,1740111056087,-500.0,0.00014849,2]
[353885712,1740111056097,-1569.7,0.00014849,2]
[353885713,1740111056107,-212.750623,0.00014849,2]
[353885714,1740111056117,-702.91,0.00014849,2]
[353885715,1740111056126,-2052.21524192,0.00014849,2]
[353885716,1740111056415,-500.0,0.00014356,2]
[353885717,1740111056424,-500.0,0.00014438,2]
[353885718,1740111056433,-500.0,0.0001452,2]
[353885719,1740111056442,-500.0,0.00014602,2]
[353885720,1740111056453,-506.26753492,0.00014684,2]
[353885721,1740111056464,-1029.64475808,0.00014849,2]
[353885722,1740111056473,-212.750623,0.00014849,2]
[353885723,1740111056482,-1013.92,0.00014849,2]
[353885724,1740111056491,-500.0,0.00014849,2]
[353885725,1740111056501,-553.77,0.00014849,2]
[353885726,1740111056510,-636.34537082,0.00014849,2]
[353885727,1740111056520,-838.68,0.00014849,2]
[353885728,1740111056529,-2200.03,0.00014849,2]
[353885729,1740111056539,-161.522347,0.00014849,2]
[353885730,1740111056548,-161.522347,0.00014849,2]
[353885731,1740111056557,-1616.94,0.00014849,2]
[353885732,1740111056567,-1636.13,0.00014849,2]
[353885733,1740111056576,-518.65,0.00014849,2]
[353885734,1740111056586,-1864.66,0.00014849,2]
[353885735,1740111056595,-507.4301472,0.00014849,2]
[353885736,1740111056605,-584.08,0.00014849,2]
[353885737,1740111056614,-4589.01,0.00014849,2]
[353885738,1740111056623,-500.0,0.00014849,2]
[353885739,1740111056633,-1463.98,0.00014849,2]
[353885740,1740111056643,-500.0,0.00014849,2]
[353885741,1740111056653,-500.0,0.00014849,2]
[353885742,1740111056662,-709.19,0.00014849,2]
[353885743,1740111056672,-160.0,0.00014853,6]
[353885744,1740111056681,-500.53230309,0.00014873,2]
[353885745,1740111056691,-9044.7251568,0.00014879,5]
[353885746,1740111056701,-55145.9122492,0.0001488,5]
[353885747,1740111056710,-1002207.58951904,0.0001488,7]
[353885750,1740111610706,352.816764,9.041e-05,2]
[353885751,1740111789483,201.0,0.00012,30]
[353885755,1740111927658,10000.0,0.00019,120]
[353885757,1740111954244,10000.0,0.00019,120]
[353885762,1740112113373,1079.29552904,0.00018052,90]
[353885786,1740112231869,-293.6322722,0.00012751,2]
[353885787,1740112231879,-700.0,0.00013068,2]
[353885788,1740112231889,-300.0,0.00013697,2]
[353885789,1740112231898,-500.0,0.00013698,2]
[353885790,1740112231908,-500.0,0.00013698,2]
[353885791,1740112231917,-501.90073531,0.00013698,2]
[353885792,1740112231927,-500.0,0.00013698,2]
[353885793,1740112231936,-501.92013995,0.00013698,2]
[353885794,1740112231946,-501.14469594,0.00013698,2]
[353885795,1740112231955,-500.0,0.00013698,2]
[353885796,1740112231964,-500.0,0.00013698,2]
[353885797,1740112231974,-500.0,0.00013698,2]
[353885798,1740112231983,-261.77239442,0.00013698,2]
[353885799,1740112231993,-365.94524741,0.00013698,2]
[353885806,1740112237817,-134.05475259,0.00013698,2]
[353885807,1740112237829,-500.0,0.00013698,2]
[353885808,1740112237839,-1333.54,0.00013698,2]
[353885809,1740112237849,-500.0,0.00013698,2]
[353885810,1740112237859,-500.0,0.00013698,2]
[353885811,1740112237869,-500.0,0.00013698,2]
[353885812,1740112237879,-500.0,0.00013698,2]
[353885813,1740112237888,-500.0,0.00013698,2]
[353885814,1740112237897,-504.32155096,0.00013698,2]
[353885815,1740112237907,-640.02,0.00013698,2]
[353885816,1740112237917,-505.08528196,0.00013698,2]
[353885817,1740112237927,-502.44237503,0.00013698,2]
[353885818,1740112237937,-505.17293925,0.00013698,2]
[353885819,1740112237947,-503.99422419,0.00013698,2]
[353885820,1740112237956,-500.0,0.00013698,2]
[353885821,1740112237966,-500.0,0.00013698,2]
[353885822,1740112237975,-500.0,0.00013698,2]
[353885823,1740112237985,-500.0,0.00013698,2]
[353885824,1740112237995,-812.91,0.00013698,2]
[353885825,1740112238004,-500.0,0.00013698,2]
[353885827,1740112238013,-500.0,0.00013698,2]
[353885829,1740112238023,-503.75444132,0.00013698,2]
[353885830,1740112238033,-500.0,0.00013698,2]
[353885831,1740112238042,-500.0,0.00013698,2]
[353885832,1740112238051,-500.34561516,0.00013698,2]
[353885833,1740112238060,-482.72395975,0.00013698,2]
[353885834,1740112238069,-500.0,0.00013698,2]
[353885835,1740112238079,-500.0,0.00013698,2]
[353885836,1740112238089,-580.29,0.00013698,2]
[353885837,1740112238098,-183.21942364,0.00013698,2]
[353885838,1740112238107,-500.0,0.00013698,2]
[353885839,1740112238117,-246.13716809,0.00013698,2]
[353885840,1740112238126,-500.0,0.00013698,2]
[353885841,1740112238135,-974.15,0.00013698,2]
[353885842,1740112238145,-500.0,0.00013698,2]
[353885843,1740112238154,-503.50721171,0.00013698,2]
[353885844,1740112238164,-506.31753928,0.00013698,2]
[353885845,1740112238173,-184.28593974,0.00013698,2]
[353885846,1740112238182,-186.79683411,0.00013698,2]
[353885847,1740112238192,-501.79781436,0.00013698,2]
[353885848,1740112238202,-500.0,0.00013698,2]
[353885849,1740112238211,-500.0,0.00013698,2]
[353885850,1740112238220,-500.0,0.00013698,2]
[353885851,1740112238231,-376.9413525,0.00013698,2]
[353885852,1740112238239,-500.0,0.00013698,2]
[353885853,1740112238249,-500.53623272,0.00013698,2]
[353885854,1740112238258,-502.84438684,0.00013698,2]
[353885855,1740112238267,-502.34248952,0.00013698,2]
[353885856,1740112238277,-500.0,0.00013698,2]
[353885857,1740112238287,-950.86,0.00013698,2]
[353885858,1740112238296,-500.0,0.00013698,2]
[353885859,1740112238305,-500.70165919,0.00013698,2]
[353885860,1740112238315,-291.47433211,0.00013698,2]
[353885861,1740112238324,-500.0,0.00013698,2]
[353885862,1740112238335,-354.03181598,0.00013698,2]
[353885863,1740112238346,-500.0,0.00013698,2]
[353885864,1740112238355,-500.0,0.00013698,2]
[353885865,1740112238365,-718.47,0.00013698,2]
[353885866,1740112238376,-596.26,0.00013698,2]
[353885867,1740112238386,-500.0,0.00013698,2]
[353885868,1740112238395,-502.2792916,0.00013698,2]
[353885869,1740112238405,-501.14308414,0.00013698,2]
[353885870,1740112238414,-500.90440795,0.00013698,2]
[353885871,1740112238424,-502.42519451,0.00013698,2]
[353885872,1740112238433,-502.84225213,0.00013698,2]
[353885873,1740112238443,-500.0,0.00013698,2]
[353885874,1740112238452,-501.93603968,0.00013698,2]
[353885875,1740112238462,-640.49,0.00013698,2]
[353885876,1740112238471,-500.0,0.00013698,2]
[353885877,1740112238481,-507.40101598,0.00013698,2]
[353885878,1740112238490,-500.0,0.00013698,2]
[353885879,1740112238499,-500.0,0.00013698,2]
[353885880,1740112238509,-500.0,0.00013698,2]
[353885881,1740112238518,-500.0,0.00013698,2]
[353885882,1740112238528,-503.54469297,0.00013698,2]
[353885883,1740112238537,-500.0,0.00013698,2]
[353885884,1740112238546,-500.0,0.00013698,2]
[353885885,1740112238555,-500.0,0.00013698,2]
[353885886,1740112238565,-501.25204282,0.00013698,2]
[353885887,1740112238574,-500.0,0.00013698,2]
[353885888,1740112238585,-500.0,0.00013698,2]
[353885889,1740112238595,-502.51388619,0.00013698,2]
[353885890,1740112238604,-504.08607889,0.00013698,2]
[353885891,1740112238614,-507.34298751,0.00013698,2]
[353885892,1740112238624,-500.0,0.00013698,2]
[353885893,1740112238633,-500.58179345,0.00013698,2]
[353885894,1740112238642,-500.0,0.00013698,2]
[353885895,1740112238651,-6912.66,0.00013698,2]
[353885896,1740112238660,-598.64,0.00013698,2]
[353885897,1740112238670,-2126.12,0.00013698,2]
[353885898,1740112238679,-2057.23,0.00013698,2]
[353885899,1740112238687,-500.0,0.00013698,2]
[353885900,1740112238697,-1180.77,0.00013698,2]
[353885901,1740112238706,-500.0,0.00013698,2]
[353885902,1740112238715,-500.82265865,0.00013698,2]
[353885903,1740112238724,-500.0,0.00013698,2]
[353885904,1740112238733,-500.0,0.00013698,2]
[353885905,1740112238872,-3110.89,0.00013698,2]
[353885906,1740112238882,-1063.8,0.00013698,2]
[353885907,1740112238891,-500.0,0.00013698,2]
[353885908,1740112238900,-500.0,0.00013698,2]
[353885909,1740112238909,-1000.0,0.00013698,2]
[353885910,1740112238919,-500.0,0.00013698,2]
[353885911,1740112238928,-579.65,0.00013698,2]
[353885912,1740112238937,-1893.75,0.00013698,2]
[353885913,1740112238946,-501.33759164,0.00013698,2]
[353885914,1740112238955,-1155.97,0.00013698,2]
[353885915,1740112238964,-500.0,0.00013698,2]
[353885916,1740112238974,-500.0,0.00013698,2]
[353885917,1740112238983,-933.1,0.00013698,2]
[353885918,1740112238993,-950.54,0.00013698,2]
[353885919,1740112239002,-12368.39,0.00013698,2]
[353885920,1740112239011,-5183.19,0.00013698,2]
[353885921,1740112239021,-500.0,0.00013698,2]
[353885922,1740112239030,-11607.98566107,0.00013698,2]
[353885923,1740112239157,-3815.36511288,0.00013698,2]
[353885924,1740112239169,-8610.10138588,0.00013698,2]
[353885925,1740112239180,-5754.92784017,0.00013698,2]
[353885926,1740112239189,-504.92992804,0.00013698,2]
[353885927,1740112239198,-915.53,0.00013698,2]
[353885928,1740112239207,-712.21,0.00013698,2]
[353885929,1740112239216,-2828.99,0.00013698,2]
[353885930,1740112239225,-501.35360459,0.00013698,2]
[353885931,1740112239234,-1498.22,0.00013698,2]
[353885932,1740112239244,-500.0,0.00013698,2]
[353885933,1740112239253,-586.82359029,0.00013698,2]
[353885934,1740112239262,-293.29838787,0.00013698,2]
[353885935,1740112239274,-208.46410647,0.00013698,2]
[353885936,1740112239283,-500.0,0.00013698,2]
[353885937,1740112239291,-567.81727523,0.00013698,2]
[353885938,1740112239308,-1001.88272477,0.00013698,2]
[353885939,1740112239318,-500.0,0.00013698,2]
[353885940,1740112239326,-1107.5,0.00013698,2]
[353885941,1740112239337,-500.0,0.00013698,2]
[353885942,1740112239347,-500.54992197,0.00013698,2]
[353885943,1740112239356,-500.50972742,0.00013698,2]
[353885944,1740112239366,-443.6840145,0.00013698,2]
[353885945,1740112239381,-56.3159855,0.00013698,2]
[353885946,1740112239391,-3081.86,0.00013698,2]
[353885947,1740112239400,-1013.92,0.00013698,2]
[353885948,1740112239409,-501.85779859,0.00013698,2]
[353885949,1740112239418,-508.4735218,0.00013698,2]
[353885950,1740112239427,-500.0,0.00013698,2]
[353885951,1740112239437,-500.0,0.00013698,2]
[353885952,1740112239446,-502.42400886,0.00013698,2]
[353885953,1740112239455,-500.0,0.00013698,2]
[353885954,1740112239464,-553.77,0.00013698,2]
[353885955,1740112239474,-838.68,0.00013698,2]
[353885956,1740112239484,-500.0,0.00013698,2]
[353885957,1740112239493,-500.0,0.00013698,2]
[353885958,1740112239502,-288.49302939,0.00013698,2]
[353885959,1740112239511,-702.91,0.00013698,2]
[353885960,1740112239520,-1636.13,0.00013698,2]
[353885961,1740112239529,-518.65,0.00013698,2]
[353885962,1740112239538,-500.0,0.00013698,2]
[353885963,1740112239548,-500.0,0.00013698,2]
[353885964,1740112239557,-1616.94,0.00013698,2]
[353885965,1740112239567,-513.46125984,0.00013698,2]
[353885966,1740112239576,-621.21,0.00013698,2]
[353885967,1740112239585,-500.0,0.00013698,2]
[353885968,1740112239594,-500.0,0.00013698,2]
[353885969,1740112239603,-596.42994496,0.00013698,2]
[353885970,1740112239612,-1891.55,0.00013698,2]
[353885971,1740112239621,-2200.03,0.00013698,2]
[353885972,1740112239630,-500.0,0.00013698,2]
[353885973,1740112239639,-584.08,0.00013698,2]
[353885974,1740112239648,-503.86098965,0.00013698,2]
[353885975,1740112239658,-500.0,0.00013698,2]
[353885976,1740112239667,-1463.98,0.00013698,2]
[353885977,1740112239676,-4734.85,0.00013698,2]
[353885978,1740112239685,-500.0,0.00013698,2]
[353885979,1740112239694,-500.0,0.00013698,2]
[353885980,1740112239703,-581.44,0.00013698,2]
[353885981,1740112239712,-581.44,0.00013698,2]
[353885982,1740112239721,-581.44,0.00013698,2]
[353885983,1740112239730,-581.44,0.00013698,2]
[353885984,1740112239739,-709.19,0.00013698,2]
[353885985,1740112239748,-581.44,0.00013698,2]
[353885986,1740112239757,-581.44,0.00013698,2]
[353885987,1740112239767,-581.44,0.00013698,2]
[353885988,1740112239779,-581.44,0.00013698,2]
[353885989,1740112239789,-581.44,0.00013698,2]
[353885990,1740112239798,-581.44,0.00013698,2]
[353885991,1740112239807,-581.44,0.00013698,2]
[353885992,1740112239816,-581.44,0.00013698,2]
[353885993,1740112239827,-381.46592178,0.00013698,2]
[353885994,1740112239836,-500.0,0.00013698,2]
[353885995,1740112239845,-500.0,0.00013698,2]
[353885996,1740112239855,-500.0,0.00013698,2]
[353885997,1740112239864,-502.76172559,0.00013698,2]
[353885998,1740112239873,-500.0,0.00013698,2]
[353885999,1740112239882,-504.12576248,0.00013698,2]
[353886000,1740112239891,-500.0,0.00013698,2]
[353886001,1740112239900,-1788.15,0.00013698,2]
[353886002,1740112239910,-500.0,0.00013698,2]
[353886003,1740112239919,-14987.05,0.00013698,2]
[353886004,1740112239928,-500.0,0.00013698,2]
[353886005,1740112239937,-500.0,0.00013698,2]
[353886006,1740112239946,-500.0,0.00013698,2]
[353886007,1740112239955,-500.0,0.00013698,2]
[353886008,1740112239964,-500.0,0.00013698,2]
[353886009,1740112239973,-179.78425889,0.00013699,2]
[353886010,1740112239982,-312.638643,0.00013699,2]
[353886011,1740112239991,-46255.5596464,0.00013699,2]
[353886012,1740112240001,-1311.062806,0.00013699,2]
[353886013,1740112240010,-581.44,0.00013762,2]
[353886014,1740112240019,-581.44,0.00013762,2]
[353886015,1740112240027,-3000.0,0.00013763,2]
[353886016,1740112240037,-38980.20807772,0.00013763,2]
[353886017,1740112240046,-581.44,0.00013778,2]
[353886018,1740112240055,-500.0,0.00013779,2]
[353886019,1740112240064,-500.0,0.00013779,2]
[353886020,1740112240073,-500.0,0.00013779,2]
[353886021,1740112240082,-500.0,0.00013779,2]
[353886022,1740112240091,-203.11434619,0.00013779,2]
[353886023,1740112240100,-500.0,0.00013779,2]
[353886024,1740112240110,-574.88229016,0.00013779,2]
[353886025,1740112240120,-500.0,0.00013779,2]
[353886026,1740112240129,-500.0,0.00013779,2]
[353886027,1740112240138,-500.0,0.00013779,2]
[353886028,1740112240148,-500.0,0.00013779,2]
[353886029,1740112240157,-500.0,0.00013779,2]
[353886030,1740112240166,-500.0,0.00013779,2]
[353886031,1740112240176,-459.0300879,0.00013779,2]
[353886032,1740112240185,-500.0,0.00013779,2]
[353886033,1740112240195,-500.0,0.00013779,2]
[353886034,1740112240204,-500.0,0.00013779,2]
[353886035,1740112240214,-500.0,0.00013779,2]
[353886036,1740112240223,-500.0,0.00013779,2]
[353886037,1740112240233,-500.0,0.00013779,2]
[353886038,1740112240242,-500.0,0.00013779,2]
[353886039,1740112240251,-500.0,0.00013779,2]
[353886040,1740112240260,-500.0,0.00013779,2]
[353886041,1740112240269,-500.0,0.00013779,2]
[353886042,1740112240279,-500.0,0.00013779,2]
[353886043,1740112240287,-500.0,0.00013779,2]
[353886044,1740112240296,-500.0,0.00013779,2]
[353886045,1740112240305,-500.0,0.00013779,2]
[353886046,1740112240314,-500.0,0.00013779,2]
[353886047,1740112240323,-500.0,0.00013779,2]
[353886048,1740112240332,-500.0,0.00013779,2]
[353886049,1740112240342,-500.0,0.00013779,2]
[353886050,1740112240351,-500.0,0.00013779,2]
[353886051,1740112240360,-500.0,0.00013779,2]
[353886052,1740112240371,-500.0,0.00013779,2]
[353886053,1740112240380,-220.95652135,0.00013779,2]
[353886054,1740112240389,-500.0,0.00013779,2]
[353886055,1740112240398,-500.0,0.00013779,2]
[353886056,1740112240407,-500.0,0.00013779,2]
[353886057,1740112240416,-500.0,0.00013779,2]
[353886058,1740112240425,-500.0,0.00013779,2]
[353886059,1740112240434,-500.0,0.00013779,2]
[353886060,1740112240443,-500.0,0.00013779,2]
[353886061,1740112240452,-500.0,0.00013779,2]
[353886062,1740112240461,-500.0,0.00013779,2]
[353886063,1740112240470,-500.0,0.00013779,2]
[353886064,1740112240479,-249.99999999,0.00013779,2]
[353886065,1740112240488,-581.44,0.00013779,2]
[353886066,1740112240497,-581.44,0.00013779,2]
[353886067,1740112240506,-581.44,0.00013779,2]
[353886068,1740112240515,-581.44,0.00013779,2]
[353886069,1740112240524,-581.44,0.00013779,2]
[353886070,1740112240533,-581.44,0.00013779,2]
[353886071,1740112240542,-581.44,0.00013779,2]
[353886072,1740112240551,-581.44,0.00013779,2]
[353886073,1740112240560,-581.45620356,0.00013779,2]
[353886074,1740112240569,-500.0,0.0001378,2]
[353886075,1740112240578,-500.0,0.0001378,2]
[353886076,1740112240588,-500.0,0.0001378,2]
[353886077,1740112240597,-500.0,0.0001378,2]
[353886078,1740112240606,-1333.54,0.0001378,2]
[353886079,1740112240615,-500.0,0.0001378,2]
[353886080,1740112240624,-500.0,0.0001378,2]
[353886081,1740112240633,-500.0,0.0001378,2]
[353886082,1740112240642,-640.02,0.0001378,2]
[353886083,1740112240653,-500.0,0.0001378,2]
[353886084,1740112240662,-500.0,0.0001378,2]
[353886085,1740112240671,-500.0,0.0001378,2]
[353886086,1740112240681,-812.91,0.0001378,2]
[353886087,1740112240690,-500.0,0.0001378,2]
[353886088,1740112240699,-500.0,0.0001378,2]
[353886089,1740112240708,-500.0,0.0001378,2]
[353886090,1740112240717,-500.0,0.0001378,2]
[353886091,1740112240727,-500.0,0.0001378,2]
[353886092,1740112240736,-500.0,0.0001378,2]
[353886093,1740112240745,-580.29,0.0001378,2]
[353886094,1740112240754,-500.0,0.0001378,2]
[353886095,1740112240763,-500.0,0.0001378,2]
[353886096,1740112240772,-974.15,0.0001378,2]
[353886097,1740112240786,-500.0,0.0001378,2]
[353886098,1740112240795,-646.88448559,0.0001378,2]
[353886099,1740112240804,-500.0,0.0001378,2]
[353886100,1740112240813,-500.0,0.0001378,2]
[353886101,1740112240825,-500.0,0.0001378,2]
[353886102,1740112240834,-950.86,0.0001378,2]
[353886103,1740112240844,-500.0,0.0001378,2]
[353886104,1740112240854,-500.0,0.0001378,2]
[353886105,1740112240864,-505.49796428,0.0001378,2]
[353886106,1740112240874,-500.0,0.0001378,2]
[353886107,1740112240883,-718.47,0.0001378,2]
[353886108,1740112240893,-596.26,0.0001378,2]
[353886109,1740112240902,-500.0,0.0001378,2]
[353886110,1740112240912,-500.0,0.0001378,2]
[353886111,1740112240921,-640.49,0.0001378,2]
[353886112,1740112240931,-500.0,0.0001378,2]
[353886113,1740112240940,-501.17249632,0.0001378,2]
[353886114,1740112240951,-500.0,0.0001378,2]
[353886115,1740112240960,-500.0,0.0001378,2]
[353886116,1740112240969,-500.0,0.0001378,2]
[353886117,1740112240978,-500.0,0.0001378,2]
[353886118,1740112240988,-500.0,0.0001378,2]
[353886119,1740112240998,-500.0,0.0001378,2]
[353886120,1740112241007,-500.0,0.0001378,2]
[353886121,1740112241016,-500.0,0.0001378,2]
[353886122,1740112241025,-500.0,0.0001378,2]
[353886123,1740112241034,-500.0,0.0001378,2]
[353886124,1740112241044,-6912.66,0.0001378,2]
[353886125,1740112241053,-598.64,0.0001378,2]
[353886126,1740112241063,-2126.12,0.0001378,2]
[353886127,1740112241072,-2057.23,0.0001378,2]
[353886128,1740112241188,-500.0097318,0.0001378,2]
[353886129,1740112241198,-1180.77,0.0001378,2]
[353886130,1740112241207,-500.0,0.0001378,2]
[353886131,1740112241217,-500.0,0.0001378,2]
[353886132,1740112241227,-500.0,0.0001378,2]
[353886133,1740112241236,-3110.89,0.0001378,2]
[353886134,1740112241246,-1063.8,0.0001378,2]
[353886135,1740112241255,-500.0,0.0001378,2]
[353886136,1740112241264,-503.36694849,0.0001378,2]
[353886137,1740112241273,-1000.0,0.0001378,2]
[353886138,1740112241282,-500.0,0.0001378,2]
[353886139,1740112241291,-579.65,0.0001378,2]
[353886140,1740112241300,-1893.75,0.0001378,2]
[353886141,1740112241309,-1155.97,0.0001378,2]
[353886142,1740112241319,-500.0,0.0001378,2]